Cogmind - Beta 15 *** ADVENTURER MODE // 2025.08.25 @ 13:33:10 Player: lepire Result: Destroyed by 39-GBV(R) with Subdweller Laser Performance ------------- Evolutions (0) 0 Regions Visited (2) 400 Robots Destroyed (12) 60 Value Destroyed (255) 255 Prototype IDs (0) 0 Alien Tech Used (0) 0 Bonus (0) 0 TOTAL SCORE: 715 Bonus ------- None Cogmind --------- Core Integrity 0/250 Matter 300/300 Energy 86/100 System Corruption 0% Temperature Cool (39) Movement Core (250) Ox4 Location -10/Subcaves Parts ------- > --- POWER (1) -------- (None) > --- PROPULSION (2) --- (None) > --- UTILITY (2) ------ Visual Processing Unit Propulsion Shielding > --- WEAPON (2) ------- Subdweller Laser Subdweller Beam Cannon > --- INVENTORY (5) ---- Small Storage Unit Weight Redist. System Signal Interpreter Transport Network Coupler Scrap Shield Fragment (40) Peak State ------------ > --- POWER ------------ Subdweller Power Source > --- PROPULSION ------- Subdweller Monowheel > --- UTILITY ---------- Visual Processing Unit Propulsion Shielding > --- WEAPON ----------- Subdweller Laser Subdweller Beam Cannon > --- INVENTORY -------- Small Storage Unit Weight Redist. System Signal Interpreter Transport Network Coupler Scrap Shield Fragment [Rating: 11] Favorites ----------- Power Light Ion Engine Engine Light Ion Engine Propulsion Aluminum Leg Leg Aluminum Leg Wheel Subdweller Monowheel Hover Unit Hover Unit Utility Visual Processing Unit Storage Small Storage Unit Processor Visual Processing Unit Protection Propulsion Shielding Weapon Small Laser Energy Gun Small Laser Energy Cannon Subdweller Beam Cannon Build | -11 -10 -10 ------- Run | Yrd Mat Sub Slots Evolved . | . . . Power . | . . . Propulsion . | . . . Utility . | . . . Weapon . | . . . Parts Attached 18 | 5 6 7 Power 3 | 1 . 2 Engine 3 | 1 . 2 Core . | . . . Reactor . | . . . Propulsion 5 | 2 2 1 Treads . | . . . Leg 2 | 2 . . Wheel 1 | . . 1 Hover 2 | . 2 . Flight . | . . . Utility 5 | 1 2 2 Device . | . . . Storage 1 | 1 . . Processor 1 | . 1 . Hackware . | . . . Protection 3 | . 1 2 Artifact . | . . . Weapon 5 | 1 2 2 Energy Gun 4 | 1 2 1 Energy Cannon 1 | . . 1 Ballistic Gun . | . . . Ballistic Cannon . | . . . Launcher . | . . . Special Weapon . | . . . Impact Weapon . | . . . Slashing Weapon . | . . . Piercing Weapon . | . . . Special Melee Weapon . | . . . Unidentified Prototypes . | . . . Parts Lost 8 | . . 8 Power 2 | . . 2 Propulsion 3 | . . 3 Utility 1 | . . 1 Weapon 2 | . . 2 Highest Loss Streak 5 | . . 5 To Critical Strikes 2 | . . 2 Average Backups 4 | 1 5 5 Power . | . 1 . Propulsion . | . . . Utility 3 | . 2 4 Weapon . | . 1 . Tool/Special . | . . . Unused Backups 6 | . 2 4 Power 1 | . 1 . Propulsion . | . . . Utility 4 | . 1 3 Weapon 1 | . . 1 Tool/Special . | . . . Average Slot Usage (%) 86 | . 90 83 Engine 13 | . 14 13 Leg 8 | . 21 . Wheel 3 | . . 5 Hover 8 | . 6 10 Storage 8 | . 14 4 Processor 9 | . 3 14 Protection 8 | . 6 9 Energy Gun 19 | . 22 17 Energy Cannon 4 | . . 7 Peak Build Rating 11 | 5 8 11 Average Rating 7 | 4 6 8 On Entrance 4 | . 5 8 Naked Turns . | . . . Heaviest Build 18 | 9 13 18 Greatest Support 20 | 20 20 20 Greatest Overweight (x) 5 | 1 1 5 Average Overweight (x) . | . . . Largest Inventory Capacity 8 | 8 8 8 Average Capacity 6 | 7 8 6 Most Carried 8 | 2 8 8 Average Carried 5 | 1 5 5 Final Capacity 8 | 8 8 5 Final Carried 8 | 2 8 5 Class Distribution -------------------- 70% | Mutant 29% | Scavenger-Mutant Dominant Class ---------------- Mutant | -10/Materials Scavenger-Mutant | -10/Subcaves Resources | -11 -10 -10 ----------- Run | Yrd Mat Sub Matter Collected 375 | 250 70 55 Remotely . | . . . Salvage Created 457 | 59 139 259 Parts 33 | 3 11 19 Haulers Intercepted 1 | . 1 . Recyclers Shooed 1 | . 1 . Parts Field Recycled . | . . . Retrieved Matter . | . . . Parts Self-Destructed 8 | . . 8 Prevented . | . . . Kills | -11 -10 -10 ------- Run | Yrd Mat Sub Combat Hostiles Destroyed 8 | . 3 5 Guns 8 | . 3 5 Classes Destroyed 6 | 1 4 1 Worker 1 | . 1 . Hauler 1 | . 1 . Recycler 1 | 1 . . Watcher 1 | . 1 . Swarmer 3 | . 3 . Subdweller 5 | . . 5 Best Kill Streak 5 | 1 3 5 Combat Bots Only 5 | . 3 5 Max Kills in Single Turn 1 | 1 1 1 Gunslinging . | . . . Exploded . | . . . Melee . | . . . Uniques/NPCs Destroyed . | . . . Combat | -11 -10 -10 -------- Run | Yrd Mat Sub Hostile Shots Fired 85 | . 16 69 Missed 30 | . 5 25 Hits 55 | . 11 44 Projectile 55 | . 11 44 Critical Strikes 4 | . . 4 Damage Taken 882 | . 71 811 Core 266 | . 14 252 Absorbed by Shields . | . . . Redirected to Shielding 22 | . . 22 Ignored by Resistances 242 | . 22 220 Core Remaining (%) 100 | 100 . . Volleys Fired 58 | 4 23 31 Largest 2 | 1 2 2 Hottest 140 | 40 80 140 Shots Fired 91 | 4 38 49 Gun 82 | 4 38 40 Cannon 9 | . . 9 Launcher . | . . . Special . | . . . Kinetic . | . . . Thermal 89 | 4 36 49 Explosive . | . . . Electromagnetic 2 | . 2 . Robot Hit Streak 15 | 3 13 15 Robot Miss Streak 5 | 1 5 1 Penetration Max . | . . . Secondary Targets 2 | . . 2 Max Gunslinging Chain 1 | . . 1 Shots Hit Robots 58 | 3 22 33 Core Hits 21 | 2 8 11 Critical Kills . | . . . Critical Parts Destroyed . | . . . Critical Strikes . | . . . Melee Attacks . | . . . Impact . | . . . Slashing . | . . . Piercing . | . . . Sneak Attacks . | . . . Combat Hostiles . | . . . Follow-up Attacks . | . . . Damage Inflicted 683 | 34 275 374 Guns 631 | 34 275 322 Cannons 52 | . . 52 Explosions . | . . . Melee . | . . . Ramming . | . . . Kinetic . | . . . Thermal 646 | 34 238 374 Explosive . | . . . Electromagnetic 37 | . 37 . Impact . | . . . Slashing . | . . . Piercing . | . . . Highest Corruption . | . . . Average Corruption . | . . . Corruption Purged . | . . . Corruption Blocked . | . . . Overload Shots . | . . . Overflow Damage . | . . . Projectiles . | . . . Explosions . | . . . Melee . | . . . Knockbacks . | . . . Impact . | . . . Kinetic . | . . . Secondary . | . . . Self-Inflicted Damage . | . . . Shots . | . . . Rammed . | . . . Targets Rammed . | . . . Kicked . | . . . Crushed . | . . . Highest Temperature 216 | . 135 216 Average Temperature 51 | . 41 65 Received Heat Transfer 490 | . 18 472 Siege Activations . | . . . Martial Activations . | . . . Shielding Activations . | . . . Robots Disrupted . | . . . Combat Hostiles . | . . . Robots Corrupted . | . . . Combat Hostiles . | . . . Parts Fried . | . . . Impact Corruptions . | . . . Robots Melted . | . . . Combat Hostiles . | . . . Parts Melted 3 | . . 3 Heat Transferred 1399 | 75 550 774 Parts Sabotaged . | . . . Parts Stolen . | . . . Parts Stripped . | . . . Power Chain Reactions . | . . . Alert | -11 -10 -10 ------- Run | Yrd Mat Sub Maximum Alert Level . | . . . Low Security (%) 100 | 100 100 . Level 1 . | . . . Level 2 . | . . . Level 3 . | . . . Level 4 . | . . . Level 5 . | . . . High Security . | . . . Max Security . | . . . Peak Influence 65 | . 65 . Initial . | . . . Average 18 | . 20 . Influence Increases 217 | 5 212 . Destroy 0b10 Robot/C 60 | . 60 . Destroy 0b10 Robot/NC 20 | 5 15 . Destroy Leader 14 | . 14 . Successful Hack 18 | . 18 . Partial Spotted 30 | . 30 . Lose Combat Pursuer 75 | . 75 . Influence Decreases 217 | 5 212 . Time Decay 217 | 5 212 . Squads Dispatched 1 | . 1 . Investigation 1 | . 1 . Extermination . | . . . Reinforcement . | . . . Assault . | . . . Garrison . | . . . Intercept . | . . . Searches Triggered . | . . . Construction Impeded . | . . . Haulers Reinforced . | . . . Active Scanning Responses . | . . . Cargo Convoy Interrupts . | . . . Stealth | -11 -10 -10 --------- Run | Yrd Mat Sub Distress Signals 2 | . 2 . Communications Jammed . | . . . Distress Signals . | . . . Times Spotted 39 | . 12 27 Peak Tracking Total 9 | . 4 9 Tactical Retreats 8 | . 3 5 Traps | -11 -10 -10 ------- Run | Yrd Mat Sub Traps Triggered 2 | . 1 1 Indirectly . | . . . Trap Hack Attempts . | . . . Triggered . | . . . Disarmed . | . . . Reprogrammed . | . . . Reused . | . . . Traps Extracted . | . . . Installed . | . . . Triggered . | . . . Machines | -11 -10 -10 ---------- Run | Yrd Mat Sub Machines Disabled . | . . . Max in Single Turn . | . . . Machines Repaired . | . . . Machines Dismantled . | . . . Machines Sabotaged . | . . . Overloaded Fab Kills . | . . . Hacking | -11 -10 -10 --------- Run | Yrd Mat Sub Machines Accessed 6 | . 6 . Terminals 5 | . 5 . Fabricators . | . . . Repair Stations . | . . . Recycling Units 1 | . 1 . Scanalyzers . | . . . Garrison Access . | . . . Total Hacks 20 | . 20 . Successful 8 | . 8 . Failed 12 | . 12 . Catastrophic . | . . . Database Lockouts . | . . . Manual . | . . . Terminals 17 | . 17 . Fabricators . | . . . Repair Stations . | . . . Recycling Units 3 | . 3 . Scanalyzers . | . . . Garrison Access . | . . . Terminal Hacks 6 | . 6 . Emergency Access Points 2 | . 2 . Locate Traps 1 | . 1 . Surveillance Status 1 | . 1 . Transport Status 1 | . 1 . Zone Layout 1 | . 1 . Fabricator Hacks . | . . . Repair Station Hacks . | . . . Recycling Unit Hacks 2 | . 2 . Report Inventory 1 | . 1 . Retrieve Components 1 | . 1 . Scanalyzer . | . . . Garrison Access Hacks . | . . . Unauthorized Hacks . | . . . Terminals . | . . . Fabricators . | . . . Repair Stations . | . . . Recycling Units . | . . . Scanalyzers . | . . . Garrison Access . | . . . Data Cores Recovered . | . . . Used . | . . . Hacking Detections 5 | . 5 . Full Trace Events . | . . . Feedback Events . | . . . Feedback Blocked . | . . . Robot Schematics Acquired . | . . . Robots Built . | . . . Authchips . | . . . Time . | . . . Total Robot Build Rating . | . . . Part Schematics Acquired . | . . . Parts Built . | . . . Authchips . | . . . Time . | . . . Total Part Build Rating . | . . . Parts Repaired . | . . . Time . | . . . Parts Recycled . | . . . Recycled Matter . | . . . Retrieved Matter . | . . . Retrieved Components 1 | . 1 . Parts Scanalyzed . | . . . Part Schematics Acquired . | . . . Parts Damaged . | . . . Bothacking | -11 -10 -10 ------------ Run | Yrd Mat Sub Used RIF Installer . | . . . Robots Hacked . | . . . Non-combat . | . . . Combat . | . . . Robot Hacks Applied . | . . . Relay Couplers Released . | . . . Fabnet Peak Effective % . | . . . Robots Rewired . | . . . Allies Hacked . | . . . Hacks Repelled . | . . . Allies | -11 -10 -10 -------- Run | Yrd Mat Sub Total Allies . | . . . Largest Group . | . . . Highest-Rated Group . | . . . Highest-Rated Ally . | . . . Total Orders . | . . . Ally Attacks . | . . . Total Damage . | . . . Kills . | . . . Allies Corrupted . | . . . Allies Melted . | . . . Intel | -11 -10 -10 ------- Run | Yrd Mat Sub Active Infowar (turns) 1026 | . 149 877 Optics 1026 | . 149 877 Robot Analysis Total . | . . . Derelict Logs Recovered 1 | . . 1 Drone Launches . | . . . Drone Recoveries . | . . . Exploration | -11 -10 -10 ------------- Run | Yrd Mat Sub Turns Passed 1512 | 70 565 877 Spaces Moved 1323 | 46 471 806 Core 74 | 5 . 69 Treads . | . . . Legs 302 | 41 261 . Wheels 298 | . . 298 Hover 649 | . 210 439 Flight . | . . . Fastest Speed 50 | 50 56 50 Average Speed 91 | 114 92 90 Slowest Speed 300 | 120 130 300 Overloaded Moves . | . . . Propulsion Burnouts . | . . . Robots Hopped . | . . . Potential Cave-ins . | . . . Cave-ins Triggered . | . . . Exploration Rate (%) 38 | 4 61 50 Regions Visited 2 Branch Regions 1 Pre-discovered Areas 1 | . . 1 Known Exits Taken . | . . . Unknown Exits Taken 2 | 1 1 . Scrap Searched . | . . . Spaces Dug . | . . . Terrain Destroyed . | . . . Melee . | . . . Projectile . | . . . AOE . | . . . Terrain Rammed . | . . . Walls Destroyed . | . . . Machines Disabled . | . . . Actions | -11 -10 -10 --------- Run | Yrd Mat Sub Total 1522 | 57 561 904 Wait 103 | . 50 53 Move 1321 | 45 470 806 Hop . | . . . Pick Up 13 | 3 8 2 Fast Attach 9 | 4 2 3 Attach 3 | 1 . 2 Detach . | . . . Swap 8 | . 5 3 Drop 7 | . 3 4 Fire 58 | 4 23 31 Melee . | . . . Ram . | . . . Kick . | . . . Crush . | . . . Escape Stasis . | . . . Rewire . | . . . Trap . | . . . Miscellaneous . | . . . Route ------- -11/Scrapyard -10/Materials (discovered 4 exits: [*Mat x2] / [*Min] / [*Sub]) -10/Subcaves History --------- Turn | Location | Event 17 | -11/Scrapyard | Discovered new exit (range 15) 71 | -11/Scrapyard | Entered Materials 82 | -10/Materials | Discovered new exit (range 14) 311 | -10/Materials | Build established: Mutant 567 | -10/Materials | Discovered new exit (range 7) 597 | -10/Materials | Discovered new exit (range 6) 615 | -10/Materials | Discovered new exit (range 7) 636 | -10/Materials | Entered Subcaves 669 | -10/Subcaves | Ambushed by swarm of Subdwellers 719 | -10/Subcaves | Lost 4 allies 966 | -10/Subcaves | Core integrity fell below 50% 986 | -10/Subcaves | Core integrity fell below 20% 1010 | -10/Subcaves | Lost 5 parts (1p2n1u1w) 1361 | -10/Subcaves | Build established: Scavenger-Mutant 1496 | -10/Subcaves | Visited 4L-MR0's lab 1513 | -10/Subcaves | Destroyed by 39-GBV(R) with Subdweller Laser Last Messages --------------- to Scrap Shield. 00988_ Disposable Heat Sink melted. 00988_ YF-HLC(R) destroyed. 00993_ Acquired Sub. Power Source. 00999_ Acquired 25 matter. 01008_ Acquired Scrap Shield Fragment. 01010_ Dropped Scrap Shield Fragment. 01010_ Acquired Scrap Shield Fragment. 01027_ Acquired Sub. Beam Cannon. 01031_ Acquired 10 matter. 01044_ Subatomizers dissect the Sub. Laser. 01059_ Dropped Sml. Laser. 01066_ Acquired 10 matter. 01073_ Subatomizers dissect the Sub. Laser. 01150_ Acquired Sub. Monowheel. 01153_ Acquired 10 matter. 01156_ Subatomizers dissect the Sub. Laser, destroying it. 01505_ Sub. Power Source destroyed. 01507_ Sub. Monowheel destroyed. Map ----- +----------------------------------------------------+ | ?????????????????????????????????? | | ?????????????????????????????????? | | ?????????????????????????????????? | | ?????????????????????????????????? | | ?????????????????????????????????? | | ?????????????????????????????????? | | ?????????????????????????????????? | | ?????????????????????????????????? | | ?????????????????????????????????? | | ?????????????????????????????????? | | ?????????????????????????????????? | | ???????????????????????##??####### | | ??????????????????????# ?? ## | | ???????????????????### ??? ## | | ???????????????????# ??? #? | | ??????????""??????## #??? ## | | ?????????#""#?????# #?? # | | ????????? ""#?#####" #?? | | ????????? X"#?# #" ### | | ????????? ""#?# # | | ????????? "??# | | ????????? "??# #" | | ????????##/##### ## ### | | ??????###RRR##^ # ##???# | | ??????#<< < ## ##???## | | ??????#< @ ## ##????# | | ??????# < <<< <### #?????# | | ??????##<<< << #### ###????# | | ???????########## ##????# | | ??????????????## #?????# | | ??????????????# #?????## | | ??????????????# ###???## | | ??????????????# ##### | | ??????????????# ## | | ??????????????# ### | | ??????????????## #??### | | ???????????????##?????## | | ???????????????????????# ### | | ???????????????????????# ##?#### | | ???????????????????????## ##????? | | ????????????????????????# ##???? | | ????????????????????????# #??## | | ????????????????????????## #??# | | ????????????????????????# ###??# | | ?????????????????????#### #?????# | | ????????????????????## ###???? | | ????????????????????# ##??? | | ????????????????????## #??# | | ?????????????????????## #### | | ??????????????????????# | +----------------------------------------------------+ Best States ------------- Heat Dissipation 25 Energy Generation 15 Energy Capacity 200 Matter Stores 300 Matter Capacity 300 Sight Range 18 Terrain Scan Density 10 Armor Coverage 150 Resistance: KI 20 Resistance: TH 20 Resistance: EX 20 Resistance: EM 20 Resistance: I 20 Resistance: S 20 Resistance: P 20 Propulsion Shielding 33 Evasion (%) 55 Offensive Hacking 10 Item Schematics ----------------- None Robot Schematics ------------------ None Fabricated ------------ Nothing Repaired ---------- Nothing Alien Tech Used ----------------- None Achievements -------------- None Challenges ------------ None Game ------ Seed AntigravPoweredFirepult Manual? 0 Play Time 00:25:01 Cumulative 17.6 hours Start 2025.08.25 @ 13:08:58 End 2025.08.25 @ 13:33:10 Sessions 1 Manual Loads 0 Difficulty Adventurer Special Mode None Game No. 26 Rogue 0 Adventurer 26 Explorer 0 Win Type - Total 0 Types 0/0/0/0/0/0/0/0/0/0 Lore% 10 Gallery% 18 Achievement% 16 Wizard Run 0 Options --------- Layout 1 ASCII 0 Keyboard 1 Movement Arrows Keybinds 0 Fullscreen 1 Font 24/Smallcaps Map View 50x35 Zoom Use 0% Tactical HUD 1 Map Filters NONE Filters NONE Steam 1 RUN: dc3c52c9-61bb-4792-8ef7-fd7aa6d5abbd